[Event "Slovakia Open 2022"]
[Site "Bratislava"]
[Date "2022.10.01"]
[Round "6.6"]
[White "Kushko, Dmitriy"]
[Black "Novosadova, Kristyna"]
[Result "1-0"]
[ECO "A05"]
[WhiteElo "2302"]
[BlackElo "2151"]
[Annotator "TA"]
[PlyCount "71"]
[EventDate "2022.09.30"]
[EventCountry "SVK"]
[SourceTitle "playchess.com"]
[Source "ChessBase"]
[SourceQuality "1"]
[TimeControl "2700+10"]

{[%evp 10,71,0,-10,-25,-19,-11,0,8,0,20,15,43,20,57,29,114,105,120,116,113,113,131,131,127,123,155,102,145,138,174,172,180,108,204,212,254,224,265,275,260,257,305,284,313,330,322,337,342,321,446,446,442,435,420,411,853,798,851,832,2712,2656,2280,2260]} 1. g3 {[%emt 0:00:04]} d5 {[%emt 0:00:18]} 2. Nf3 {[%emt 0:00:07]} Nf6 {[%emt 0:00:04]} 3. Bg2 {[%emt 0:00:01]} g6 {[%emt 0:00:07]} 4. b3 {[%emt 0:00:11]} Bg7 {[%emt 0:00:09]} 5. Bb2 {[%emt 0:00:02]} c5 {[%emt 0:00:22]} 6. c4 {[%emt 0:00:43]} d4 {[%emt 0:00:10] A05: Réti Opening: 1 Nf3 Nf6.} 7. b4 {[%emt 0:00:21]} Nc6 {[%emt 0:00:14]} 8. bxc5 {[%emt 0:00:38]} e5 {[%emt 0:00:02] The position is equal.} 9. d3 {[%emt 0:01:18]} O-O {[%emt 0:01:01]} 10. Nbd2 {[%emt 0:00:54] Against e4} Nd7 {[%emt 0:00:28]} 11. Nb3 {[%emt 0:02:37]} f5 {[%emt 0:02:56]} 12. O-O {[%emt 0:00:29] [#]} g5 $146 {[%emt 0:01:06]} (12... Qe7 $11 {keeps the balance.}) ({Predecessor:} 12... Re8 13. e3 dxe3 14. fxe3 Na5 15. Nxa5 Qxa5 16. Ng5 Nxc5 17. d4 Ne6 18. Nxe6 Bxe6 {1-0 (34) Hombrecher,K (1804)-Finke,D (1999) Nordrheinwestfalen 2019}) 13. e3 {[%emt 0:03:07]} dxe3 {[%emt 0:01:04]} 14. fxe3 {[%emt 0:00:16]} a5 {[%emt 0:00:28] [#]} 15. a4 $1 {[%emt 0:01:05] White is more active.} Qe7 {[%emt 0:04:39]} 16. d4 {[%emt 0:01:00]} e4 {[%emt 0:00:26]} 17. Ne1 {[%emt 0:01:38]} Ra6 {[%emt 0:02:21]} 18. Qd2 {[%emt 0:04:00]} (18. Nc2 $142) 18... g4 {[%emt 0:00:10]} 19. Nc2 {[%emt 0:01:10]} Qg5 {[%emt 0:00:41]} 20. Bc3 {[%emt 0:01:07][%cal Bb2c3,Bc3a5,Ba5c7,Bc7f4][%mdl 32]} h5 {[%emt 0:02:40]} 21. Nxa5 {[%emt 0:00:43]} ({White should try} 21. Rab1 $18) 21... Nxa5 {[%emt 0:00:04]} (21... Nxc5 $16 22. Rfb1 (22. dxc5 Rd8 $11) (22. Nxc6 Nb3 $15) 22... Nxa5 23. Bxa5 (23. dxc5 Rd8 $11) 23... Nd3) 22. Bxa5 $18 {[%emt 0:00:02]} h4 {[%emt 0:01:02]} 23. gxh4 {[%emt 0:02:29]} Qxh4 {[%emt 0:00:21] [#]} 24. Bc7 $1 {[%emt 0:00:03]} Rh6 {[%emt 0:02:33][%cal Od7e5]} 25. Bf4 {[%emt 0:01:52] Prevents Ne5.} Rh7 {[%emt 0:00:31]} 26. Nb4 {[%emt 0:00:43]} Nf6 {[%emt 0:00:39]} 27. Qf2 {[%emt 0:00:58]} Qh5 {[%emt 0:00:16]} 28. Nd5 {[%emt 0:03:16]} Bh6 {[%emt 0:06:06]} 29. Qg3 {[%emt 0:02:28]} Ne8 {[%emt 0:02:12]} 30. Rab1 {[%emt 0:01:33][%cal Ba1b1,Bb1b6,Bb6g6][%mdl 32]} Bg5 {[%emt 0:00:39]} 31. Bxg5 {[%emt 0:00:17]} Qxg5 {[%emt 0:00:01]} 32. Rb6 {[%emt 0:00:57]} Ng7 {[%emt 0:00:12] [#]} (32... Rhf7 $142 33. h4 Qg7) 33. Rg6 $3 {[%emt 0:00:30][%mdl 512] White is clearly winning.} Qd8 {[%emt 0:01:43]} 34. Qe5 {[%emt 0:02:06]} Kf7 {[%emt 0:02:47]} 35. Rf6+ {[%emt 0:00:16]} Kg8 {[%emt 0:00:02]} 36. Ne7+ {[%emt 0:00:02] Weighted Error Value: White=0.10 (very precise) /Black=0.33} 1-0

[Event "Slovakia Open 2022"]
[Site "Bratislava"]
[Date "2022.10.01"]
[Round "6.7"]
[White "Sobek, Michal"]
[Black "Mikrut, Dariusz"]
[Result "0-1"]
[ECO "B27"]
[WhiteElo "2156"]
[BlackElo "2316"]
[Annotator "TA"]
[PlyCount "56"]
[EventDate "2022.09.30"]
[EventCountry "SVK"]
[SourceTitle "playchess.com"]
[Source "ChessBase"]
[SourceQuality "1"]
[TimeControl "2700+10"]

{[%evp 9,56,-77,-75,-78,-85,-102,66,-53,-52,-80,-74,-133,-132,-133,-129,-118,-118,-120,-119,-125,-120,-207,-181,-278,-268,-302,-285,-376,-288,-289,-222,-285,-214,-225,-225,-214,-204,-268,-268,-268,-268,-335,-289,-541,-541,-541,-535,-468,-468]} 1. e4 {[%emt 0:00:04]} c5 {[%emt 0:01:19]} 2. Nf3 {[%emt 0:00:07]} g6 {[%emt 0:00:02]} 3. d4 {[%emt 0:00:06]} cxd4 {[%emt 0:00:03]} 4. Nxd4 {[%emt 0:00:02]} Nf6 {[%emt 0:00:12]} 5. e5 {[%emt 0:00:37]} Qa5+ {[%emt 0:00:21]} 6. Nc3 {[%emt 0:00:01] B27: Sicilian: 2 Nf3, unusual Black 2nd moves.} Qxe5+ {[%emt 0:00:02]} 7. Be2 {[%emt 0:00:06] [#]} Qc7 $146 {[%emt 0:00:29]} (7... Nc6 $17 8. Nb3 Bg7) ({Predecessor:} 7... Nc6 8. Be3 Bg7 9. Qd2 Ne4 10. Nxe4 Nxd4 11. Bxd4 Qxd4 12. Qxd4 Bxd4 13. O-O-O Bg7 {0-1 (44) Carreras Mendiolea,P (1906)-Martha,L (1671) Mexico City 2021}) 8. Be3 {[%emt 0:01:06]} (8. Ndb5 $1 $14 Qd8 9. Bg5) 8... Nc6 $15 {[%emt 0:00:16]} 9. h4 {[%emt 0:00:44] [#]} h5 $1 {[%emt 0:00:27] Black keeps a firm grip on the game.} 10. a4 {[%emt 0:01:03]} ({White should try} 10. Ndb5 Qb8 11. g3) 10... Bg7 $17 {[%emt 0:00:13]} 11. Qd2 {[%emt 0:00:12]} d6 {[%emt 0:00:08]} 12. Bg5 {[%emt 0:00:38]} Nxd4 {[%emt 0:02:00]} 13. Qxd4 {[%emt 0:00:02]} O-O {[%emt 0:00:04][%cal Of6e4]} 14. Qd2 {[%emt 0:01:55]} Be6 {[%emt 0:00:13]} 15. Bxf6 {[%emt 0:00:33]} (15. O-O $17) 15... Bxf6 $19 {[%emt 0:00:09]} ({Inferior is} 15... exf6 16. Nb5 Qd8 17. c3 $17) 16. g4 {[%emt 0:00:08]} (16. Nb5 $142 Qc5 17. c3) 16... Qc6 {[%emt 0:04:14]} (16... Bxg4 $2 17. Nd5 Qd7 18. Nxf6+ exf6 19. f3 $19) 17. Rg1 {[%emt 0:01:15]} hxg4 {[%emt 0:00:08]} ({And not} 17... Bxh4 18. gxh5 Kg7 19. Bd3 $11) 18. h5 {[%emt 0:00:50]} Rac8 {[%emt 0:00:31][%cal Ba8c8,Bc8c3,Bc3c2,Bc2a2][%mdl 32]} 19. hxg6 {[%emt 0:01:04]} Bxc3 {[%emt 0:00:47]} 20. bxc3 {[%emt 0:00:03]} Qxc3 {[%emt 0:00:02]} 21. Qxc3 {[%emt 0:00:23]} Rxc3 {[%emt 0:00:01]} 22. gxf7+ {[%emt 0:02:04]} Kxf7 {[%emt 0:00:27]} ({Wrong is} 22... Rxf7 $2 23. Bxg4 Bxg4 24. Rxg4+ Kf8 25. Ra2) 23. Bxg4 {[%emt 0:00:04]} Bxg4 {[%emt 0:00:09]} 24. Rxg4 {[%emt 0:00:01]} Rxc2 {[%emt 0:00:10] KRR-KRR} 25. Rb1 {[%emt 0:00:23]} Rh8 {[%emt 0:00:25] [#] ( -> ...Rh1+)} 26. Rf4+ $2 {[%emt 0:00:57]} (26. Kf1 Rh1+ 27. Rg1 Rxg1+ 28. Kxg1) 26... Ke8 {[%emt 0:00:16][%cal Rh8h1] Black is clearly winning.} 27. Kd1 {[%emt 0:00:18]} Ra2 {[%emt 0:00:09][%cal Rh8h1]} 28. Re4 {[%emt 0:00:03]} b6 {[%emt 0:00:34] Weighted Error Value: White=0.52/Black=0.30} 0-1

[Event "Slovakia Open 2022"]
[Site "Bratislava"]
[Date "2022.10.01"]
[Round "6.8"]
[White "Machata, Martin"]
[Black "Babula, Vlastimil"]
[Result "0-1"]
[ECO "B23"]
[WhiteElo "2212"]
[BlackElo "2574"]
[Annotator "TA"]
[PlyCount "126"]
[EventDate "2022.09.30"]
[EventCountry "SVK"]
[SourceTitle "playchess.com"]
[Source "ChessBase"]
[SourceQuality "1"]
[TimeControl "2700+10"]

{[%evp 9,126,4,20,19,36,-19,33,18,45,-5,33,29,23,41,30,16,30,16,14,21,20,7,7,3,29,28,28,29,28,32,29,20,28,27,58,7,4,0,0,0,17,17,16,0,10,0,130,139,286,-33,0,-100,-96,-103,0,-22,-25,-21,0,-66,5,0,15,8,8,12,8,7,12,0,0,-6,-10,-24,-20,-100,-35,-31,0,-27,0,0,0,0,0,-12837,-12837,-12837,-12838,-12838,-12839,-12839,-12839,-12840,-12840,-12841,-12841,-12842,-12843,-12844,-12843,-12845,-12845,-12846,-12847,-12847,-12847,-12850,-27999,-27999,-27999,-27999,-27999,-27998,-27998,-27997,-27991,-27992,-27992]} 1. e4 {[%emt 0:01:54]} c5 {[%emt 0:00:01]} 2. Nc3 {[%emt 0:00:11]} Nc6 {[%emt 0:00:03]} 3. Bb5 {[%emt 0:00:04]} Nd4 {[%emt 0:00:03]} 4. Nf3 {[%emt 0:00:01]} a6 {[%emt 0:00:05]} 5. Bd3 {[%emt 0:00:03]} Nc6 {[%emt 0:00:02]} 6. O-O {[%emt 0:00:06] B23: Closed Sicilian: Lines without g3.} e6 {[%emt 0:00:13]} 7. Re1 {[%emt 0:00:14] [#]} (7. Be2 $14) 7... Be7 $146 {[%emt 0:00:36] [#]} (7... g5 $11 8. g3 d6) ({Predecessor:} 7... b5 8. Bf1 Qb6 9. a4 b4 10. Nd5 exd5 11. exd5+ Nce7 12. d4 d6 13. a5 Qc7 14. dxc5 Qxc5 {0-1 (63) Svidler,P (2714)-Caruana,F (2820) Paris 2021}) 8. Nd5 $1 $14 {[%emt 0:08:50] White is slightly better.} Bd6 {[%emt 0:03:48]} (8... d6 9. Nxe7) 9. e5 {[%emt 0:03:04]} (9. b4 $14) 9... Bf8 {[%emt 0:00:03]} (9... Nxe5 $2 10. Nxe5 Bxe5 11. Rxe5 $18) (9... Bb8 $5 {[%cal Re6d5]} 10. Ne3 Nxe5 $11) 10. Nc3 {[%emt 0:00:14]} d6 {[%emt 0:00:24]} 11. exd6 {[%emt 0:01:30]} Bxd6 {[%emt 0:00:56]} 12. Ne4 {[%emt 0:00:42]} Be7 {[%emt 0:00:12]} 13. b3 {[%emt 0:01:21]} Nf6 {[%emt 0:00:29]} 14. Bb2 {[%emt 0:00:05]} b6 {[%emt 0:03:06]} 15. Ne5 {[%emt 0:07:59]} Nxe5 {[%emt 0:01:45]} 16. Bxe5 {[%emt 0:01:21]} Bb7 {[%emt 0:00:14]} 17. Qf3 {[%emt 0:01:34]} Nxe4 {[%emt 0:03:49]} 18. Bxe4 {[%emt 0:00:21]} Bxe4 {[%emt 0:00:03]} 19. Rxe4 {[%emt 0:03:24]} O-O {[%emt 0:02:24]} 20. Rg4 {[%emt 0:05:48]} f6 {[%emt 0:00:43]} (20... g6 {is more complex.} 21. d3 Qd5 22. Qg3 f6) 21. Bc3 {[%emt 0:01:18]} Qd5 {[%emt 0:00:51]} 22. Qg3 {[%emt 0:00:12]} (22. Re1 $14 Bd6 23. Qe2) 22... Rf7 $1 $11 {[%emt 0:00:03]} 23. Re1 {[%emt 0:00:31]} Bd6 {[%emt 0:01:18]} 24. Qh3 {[%emt 0:01:37]} Re8 {[%emt 0:02:35]} 25. Rh4 {[%emt 0:00:24]} h6 {[%emt 0:00:55]} 26. Rh5 {[%emt 0:02:30]} f5 {[%emt 0:01:32]} 27. g4 {[%emt 0:00:14]} Rd8 {[%emt 0:07:09] [#]} (27... Ree7 $11) 28. g5 $1 $16 {[%emt 0:00:07]} Bf4 {[%emt 0:00:01]} (28... Rdd7 $16 {keeps fighting.}) 29. g6 $2 {[%emt 0:01:47]} ({Only move:} 29. gxh6 $18 Rdd7 30. hxg7 Rxg7+ 31. Bxg7 Rxg7+ 32. Kf1) 29... Rfd7 {[%emt 0:01:25]} 30. d3 {[%emt 0:01:04]} (30. Qg2 $11 {keeps the balance.}) 30... Qd6 {[%emt 0:00:16]} 31. Rh4 {[%emt 0:00:17]} Bg5 {[%emt 0:00:56]} ({Better is} 31... b5 $17) 32. Be5 {[%emt 0:00:23]} (32. Rh5 $5 {[%cal Rh5g5]} Bf4 33. Kf1 $15) 32... Qe7 {[%emt 0:00:38]} 33. Rh5 {[%emt 0:00:41]} Rd5 {[%emt 0:01:08]} 34. f4 {[%emt 0:00:04] [#]} (34. Qg2 $11) 34... Rxe5 $1 {[%emt 0:01:10]} 35. Rxe5 {[%emt 0:00:25]} (35. fxe5 {looks sharper.} Rd4 36. Kh1 Rg4 37. Qf3) 35... Bxf4 {[%emt 0:00:12]} 36. Rhxf5 {[%emt 0:00:29]} Bxe5 {[%emt 0:00:45]} 37. Rxe5 $15 {[%emt 0:00:01][%mdl 4096] Endgame KQR-KQR} Re8 {[%emt 0:00:12]} 38. Qg4 {[%emt 0:00:18]} Qf6 {[%emt 0:00:07]} 39. Re4 {[%emt 0:00:02]} e5 {[%emt 0:00:52]} 40. Re2 {[%emt 0:00:18]} Re6 {[%emt 0:01:01]} 41. Rg2 {[%emt 0:00:09]} e4 {[%emt 0:02:20]} 42. h4 {[%emt 0:00:04] [#]} (42. Re2 $1 $11) 42... exd3 {[%emt 0:00:27]} ({Black should try} 42... e3 $1 $17 {Strongly threatening ...Qa1+.} 43. Re2 Qxg6 44. Qxg6 Rxg6+ 45. Kh2 Re6) 43. cxd3 {[%emt 0:00:09]} Re1+ {[%emt 0:00:37]} 44. Kh2 {[%emt 0:00:02]} Qe5+ {[%emt 0:00:02]} 45. Qg3 {[%emt 0:00:12]} h5 {[%emt 0:00:47]} 46. Qxe5 {[%emt 0:00:19]} Rxe5 {[%emt 0:00:01]} 47. Rg5 $2 {[%emt 0:00:16][%mdl 8192]} (47. Kg3 $11) 47... Rxg5 $19 {[%emt 0:00:05]} 48. hxg5 {[%emt 0:00:02] KP-KP} Kf8 {[%emt 0:00:01]} 49. Kg3 {[%emt 0:00:05]} Ke7 {[%emt 0:00:02]} 50. Kh4 {[%emt 0:00:28]} Ke6 {[%emt 0:00:01]} 51. Kxh5 {[%emt 0:00:02]} Kf5 {[%emt 0:00:01]} 52. Kh4 {[%emt 0:00:05]} Kf4 {[%emt 0:00:01]} 53. a3 {[%emt 0:00:25]} b5 {[%emt 0:00:02]} 54. a4 {[%emt 0:00:10]} Ke3 {[%emt 0:00:37] ( -> ...bxa4)} 55. axb5 {[%emt 0:00:08]} axb5 {[%emt 0:00:01]} 56. Kg4 {[%emt 0:00:10]} Kxd3 {[%emt 0:00:02] K3P-K3P} 57. Kf5 {[%emt 0:00:00]} c4 {[%emt 0:00:03]} 58. bxc4 {[%emt 0:00:00]} bxc4 {[%emt 0:00:01] KPP-KPP} 59. Ke6 {[%emt 0:00:00] Black mates.} c3 {[%emt 0:00:01]} 60. Kf7 {[%emt 0:00:00]} c2 {[%emt 0:00:01]} 61. Kxg7 {[%emt 0:00:00]} c1=Q {[%emt 0:00:02]} 62. Kh7 {[%emt 0:00:27]} Qxg5 {[%emt 0:00:07]} 63. g7 {[%emt 0:00:02]} Qh5+ {[%emt 0:00:01] Quite a comeback for Black.  Weighted Error Value: White=0.34/Black=0.19 (very precise)} 0-1

[Event "Slovakia Open 2022"]
[Site "Bratislava"]
[Date "2022.10.01"]
[Round "6.9"]
[White "Kukelko, Alexey"]
[Black "Nytra, Ondrej"]
[Result "1/2-1/2"]
[ECO "C77"]
[WhiteElo "2280"]
[BlackElo "2233"]
[Annotator "TA"]
[PlyCount "24"]
[EventDate "2022.09.30"]
[EventCountry "SVK"]
[SourceTitle "playchess.com"]
[Source "ChessBase"]
[SourceQuality "1"]
[TimeControl "2700+10"]

{[%evp 11,24,20,22,3,14,4,5,10,15,0,10,0,18,0,4]} 1. e4 {[%emt 0:17:30]} e5 {[%emt 0:00:03]} 2. Nf3 {[%emt 0:00:02]} Nc6 {[%emt 0:00:05]} 3. Bb5 {[%emt 0:00:11][%cal Bf1b5,Bb5a4,Ba4b3][%mdl 32]} a6 {[%emt 0:00:03]} 4. Ba4 {[%emt 0:00:02]} Nf6 {[%emt 0:00:05]} 5. d3 {[%emt 0:00:08]} b5 {[%emt 0:00:05]} 6. Bb3 {[%emt 0:00:02]} Be7 {[%emt 0:00:02] The position is equal.} 7. a3 {[%emt 0:00:12] C77: Ruy Lopez: 3...a6 4 Ba4 Nf6, unusual lines.} O-O {[%emt 0:00:19]} 8. Nc3 {[%emt 0:00:04]} d6 {[%emt 0:00:13]} 9. h3 {[%emt 0:00:03]} Re8 {[%emt 0:00:29] [#]} 10. Ng5 $146 {[%emt 0:00:03]} ({Predecessor:} 10. Nd5 Be6 11. Nxf6+ Bxf6 12. c4 Na5 13. Bc2 bxc4 14. Bd2 c5 15. O-O cxd3 16. Ba4 Rf8 17. b4 Nb7 18. Bc6 {0-1 (35) Helfer,F (998)-Bilow,A (1496) Troisdorf 2008}) 10... Rf8 {[%emt 0:00:02]} 11. Nf3 {[%emt 0:00:03]} Re8 {[%emt 0:00:08]} 12. Ng5 {[%emt 0:00:03]} Rf8 {[%emt 0:00:17] An uneventful encounter.  Weighted Error Value: White=0.12 (very precise) /Black=0.03 (flawless)} 1/2-1/2

[Event "Slovakia Open 2022"]
[Site "Bratislava"]
[Date "2022.10.01"]
[Round "6.10"]
[White "Stevik, Patrik"]
[Black "Pasti, Aron"]
[Result "0-1"]
[ECO "B40"]
[WhiteElo "2148"]
[BlackElo "2350"]
[Annotator "TA"]
[PlyCount "73"]
[EventDate "2022.09.30"]
[EventCountry "SVK"]
[SourceTitle "playchess.com"]
[Source "ChessBase"]
[SourceQuality "1"]
[TimeControl "2700+10"]

{[%evp 9,73,23,25,39,34,31,22,28,35,23,28,28,28,0,35,0,69,62,60,12,14,14,3,0,0,-29,-22,-82,-73,-70,-71,-82,-89,-69,-69,-87,-42,-335,-342,-328,-330,-339,-332,-334,-330,-293,-322,-287,-238,-519,-404,-547,-541,-506,-323,-333,-330,-635,-605,-644,-616,-550,-500,-715,-702,-690]} 1. e4 {[%emt 0:00:07]} c5 {[%emt 0:00:16]} 2. Nf3 {[%emt 0:00:03]} e6 {[%emt 0:00:01]} 3. g3 {[%emt 0:00:06]} Nc6 {[%emt 0:00:15]} 4. Bg2 {[%emt 0:00:11]} d6 {[%emt 0:00:14]} 5. O-O {[%emt 0:00:33]} Nf6 {[%emt 0:00:01]} 6. Re1 {[%emt 0:00:23] B40: Sicilian: 2...e6, Unusual lines.} Be7 {[%emt 0:00:06]} 7. d4 {[%emt 0:00:21]} cxd4 {[%emt 0:00:01]} 8. Nxd4 {[%emt 0:00:02] The position is equal.} e5 {[%emt 0:00:51] [#]} 9. Nxc6 $146 {[%emt 0:01:21]} ({Predecessor:} 9. Ne2 O-O 10. Nbc3 Be6 11. h3 Rc8 12. Be3 a6 13. g4 Na5 14. b3 Qc7 15. g5 {0-1 (63) Accattato Martin,M (2251)-Maza Broto,P (2022) Aragon 2017}) 9... bxc6 {[%emt 0:00:02]} 10. c4 {[%emt 0:00:03]} h5 {[%emt 0:00:24]} 11. Bg5 {[%emt 0:04:40]} Qb6 {[%emt 0:01:15]} 12. Qc2 {[%emt 0:02:20]} Ng4 {[%emt 0:01:04]} (12... Nd7 $11 13. Be3 Qb7) 13. Bxe7 $14 {[%emt 0:01:15]} Kxe7 {[%emt 0:00:03]} 14. c5 {[%emt 0:04:05]} (14. Nc3 $14 {is superior.}) 14... Qxc5 $11 {[%emt 0:03:16]} 15. Qxc5 {[%emt 0:00:52]} dxc5 {[%emt 0:00:11]} 16. Na3 {[%emt 0:01:58]} Be6 {[%emt 0:00:50]} 17. Rec1 {[%emt 0:01:17]} Rhb8 {[%emt 0:00:01]} 18. b3 {[%emt 0:00:54] [#]} (18. h3 $11 {keeps the balance.} Nf6 19. Rxc5) 18... a5 $1 $17 {[%emt 0:00:02][%cal Ba7a5,Ba5a4][%mdl 32]} 19. Rxc5 {[%emt 0:16:56]} a4 {[%emt 0:00:05]} 20. b4 {[%emt 0:01:01]} Rxb4 {[%emt 0:00:31]} 21. h3 {[%emt 0:00:13]} Nf6 {[%emt 0:00:07] Black is more active.} 22. Rxe5 {[%emt 0:01:03]} Rd8 {[%emt 0:00:01] White must now prevent ...Rd2.} 23. f4 $2 {[%emt 0:02:30][%mdl 8192] [#] Now White is beyond hope.} (23. Ra5 $1 $15) 23... Rd3 $19 {[%emt 0:00:31]} 24. Nc2 {[%emt 0:01:37]} Rb2 {[%emt 0:00:13]} 25. Ne1 {[%emt 0:00:40]} Rxg3 {[%emt 0:03:26]} 26. f5 {[%emt 0:00:02]} Nd7 {[%emt 0:00:01]} 27. Ra5 {[%emt 0:00:08]} Bxa2 {[%emt 0:00:12] And now ...Bb3 would win.} 28. Rxa4 {[%emt 0:00:25]} Bb1 {[%emt 0:04:33]} 29. Rd4 $2 {[%emt 0:01:44]} (29. R4a3 Rg5 30. Re3) 29... c5 {[%emt 0:01:24]} 30. Rd1 {[%emt 0:00:22]} Bxe4 {[%emt 0:00:25]} 31. Ra7 {[%emt 0:00:04]} Bb7 {[%emt 0:00:01]} ({Worse is} 31... Rbxg2+ 32. Nxg2 Bxf5 33. Kf2 $15) 32. Kf1 {[%emt 0:01:26]} Rgxg2 {[%emt 0:00:38]} ({Wrong is} 32... Bxg2+ $2 33. Nxg2 Rbxg2 34. Rdxd7+ Kf6 35. Rxf7+ Ke5 36. h4 $19) 33. Nxg2 $2 {[%emt 0:00:14]} (33. Rxd7+ Kxd7 34. Nxg2) 33... Bxg2+ {[%emt 0:00:01] Black is clearly winning.} 34. Kg1 {[%emt 0:00:22]} Bc6 {[%emt 0:00:16]} 35. Rc7 {[%emt 0:01:18]} Rb6 {[%emt 0:00:01]} 36. Rc8 {[%emt 0:00:06]} c4 {[%emt 0:00:35]} 37. Re1+ {[%emt 0:00:38] Weighted Error Value: White=0.58/Black=0.26 (precise)} 0-1

[Event "Slovakia Open 2022"]
[Site "Bratislava"]
[Date "2022.10.01"]
[Round "6.11"]
[White "Roshka, Yevgeniy"]
[Black "Mandak, Miroslav"]
[Result "1-0"]
[ECO "A90"]
[WhiteElo "2497"]
[BlackElo "1864"]
[Annotator "TA"]
[PlyCount "53"]
[EventDate "2022.09.30"]
[EventCountry "SVK"]
[SourceTitle "playchess.com"]
[Source "ChessBase"]
[SourceQuality "1"]
[TimeControl "2700+10"]

{[%evp 9,53,21,40,43,53,39,50,44,53,30,31,37,40,43,66,69,67,52,77,66,62,66,88,69,77,83,82,73,102,95,157,163,238,241,236,234,252,258,627,622,620,616,606,575,918,913]} 1. d4 {[%emt 0:00:06]} e6 {[%emt 0:00:10]} 2. c4 {[%emt 0:00:07]} f5 {[%emt 0:00:28]} 3. g3 {[%emt 0:00:07]} Nf6 {[%emt 0:00:20]} 4. Bg2 {[%emt 0:00:05]} c6 {[%emt 0:00:35]} 5. Nh3 {[%emt 0:00:14]} Bb4+ {[%emt 0:02:50]} 6. Nd2 {[%emt 0:01:35] A90: Dutch Defence: Miscellaneous and Modern Stonewall (with ...Bd6).} O-O {[%emt 0:01:37] [#]} 7. c5 $146 {[%emt 0:01:01]} ({Predecessor:} 7. Nf4 d6 8. Nd3 Bxd2+ 9. Bxd2 Nbd7 10. Bb4 Qe7 11. O-O c5 12. dxc5 dxc5 13. Ba3 a5 {½-½ (25) Stopa,J (2528)-Moosavian,S (2342) Sowme'eh Sara 2015}) 7... d5 {[%emt 0:01:47]} 8. cxd6 {[%emt 0:01:29] White is slightly better.} Qxd6 {[%emt 0:00:26]} 9. a3 {[%emt 0:00:13]} Bxd2+ {[%emt 0:01:13]} 10. Qxd2 {[%emt 0:00:04]} Rd8 {[%emt 0:01:02]} 11. e3 {[%emt 0:00:17]} Bd7 {[%emt 0:03:20]} 12. O-O {[%emt 0:00:23]} Be8 {[%emt 0:00:30]} 13. Qc2 {[%emt 0:00:08]} Bf7 {[%emt 0:03:04]} 14. Bd2 {[%emt 0:00:39][%cal Bc1d2,Bd2b4,Bb4e7,Be7g5][%mdl 32]} Nbd7 {[%emt 0:02:29]} 15. Nf4 {[%emt 0:03:08]} a5 {[%emt 0:05:50]} 16. b4 {[%emt 0:02:24]} axb4 {[%emt 0:01:38]} 17. Bxb4 {[%emt 0:00:07]} Qb8 {[%emt 0:00:36]} 18. Rab1 {[%emt 0:00:34]} Qa7 {[%emt 0:01:30]} 19. Rfc1 {[%emt 0:03:19] White has more active pieces.} g5 {[%emt 0:01:07]} (19... Ne4 $142) 20. Nd3 $16 {[%emt 0:02:54]} Nd5 {[%emt 0:02:48]} (20... Ne4 {is a better defense.} 21. Bxe4 fxe4) 21. Bxd5 $18 {[%emt 0:03:06]} cxd5 {[%emt 0:02:45]} 22. Be7 {[%emt 0:00:03][%csl LRd8,LRg5]} Re8 {[%emt 0:02:39]} 23. Bxg5 {[%emt 0:00:06]} Nb6 $2 {[%emt 0:03:08]} (23... b6 24. Qc6 Rab8) 24. Qc7 {[%emt 0:00:24] [#] Hoping for Ne5. White is clearly winning.} Rec8 {[%emt 0:02:12]} 25. Qxb6 {[%emt 0:00:07] Rxc8+ would kill now.} Rxc1+ {[%emt 0:00:45]} 26. Nxc1 {[%emt 0:00:03]} Qxa3 {[%emt 0:01:22]} 27. Qxb7 {[%emt 0:00:07] Weighted Error Value: White=0.04 (flawless) /Black=0.35} 1-0